Cogmind - Beta 14 *** ADVENTURER MODE // 2024.12.24 @ 01:20:21 Player: x1b Result: Destroyed by Y-45 Defender with Heavy Assault Rifle Performance ------------- Evolutions (1) 500 Regions Visited (2) 400 Robots Destroyed (12) 60 Value Destroyed (375) 375 Prototype IDs (0) 0 Alien Tech Used (0) 0 Bonus (0) 0 TOTAL SCORE: 1335 Bonus ------- None Cogmind --------- Core Integrity 0/400 Matter 300/300 Energy 350/350 System Corruption 0% Temperature Cool (0) Movement Core (150) Ox2 Location -9/Materials Parts ------- > --- POWER (1) -------- (None) > --- PROPULSION (4) --- (None) > --- UTILITY (2) ------ Small Storage Unit High-capacity Battery > --- WEAPON (2) ------- (None) > --- INVENTORY (8) ---- Ion Engine Light Ion Engine Aluminum Leg Melee Analysis Suite Small Laser Beam Rifle Assault Rifle Peak State ------------ > --- POWER ------------ Ion Engine > --- PROPULSION ------- Aluminum Leg Aluminum Leg Aluminum Leg Aluminum Leg > --- UTILITY ---------- Small Storage Unit High-capacity Battery > --- WEAPON ----------- Beam Rifle Light Assault Rifle > --- INVENTORY -------- Ion Engine Light Nuclear Core Aluminum Leg Small Laser Particle Gun Particle Cannon Assault Rifle [Rating: 11] Favorites ----------- Power Ion Engine Engine Ion Engine Power Core Light Nuclear Core Propulsion Aluminum Leg Leg Aluminum Leg Utility Small Storage Unit Storage Small Storage Unit Weapon Light Assault Rifle Energy Gun Small Laser Energy Cannon Particle Cannon Ballistic Gun Light Assault Rifle Build | -11 -10 -9 ------- Run | Yrd Mat Mat Slots Evolved 2 | . . 2 Power . | . . . Propulsion 2 | . . 2 Utility . | . . . Weapon . | . . . Parts Attached 13 | 6 1 6 Power 2 | 1 . 1 Engine 1 | 1 . . Core 1 | . . 1 Reactor . | . . . Propulsion 4 | 2 . 2 Treads . | . . . Leg 4 | 2 . 2 Wheel . | . . . Hover . | . . . Flight . | . . . Utility 2 | 1 1 . Device . | . . . Storage 2 | 1 1 . Processor . | . . . Hackware . | . . . Protection . | . . . Artifact . | . . . Weapon 5 | 2 . 3 Energy Gun 3 | 1 . 2 Energy Cannon 1 | . . 1 Ballistic Gun 1 | 1 . . Ballistic Cannon . | . . . Launcher . | . . . Special Weapon . | . . . Impact Weapon . | . . . Slashing Weapon . | . . . Piercing Weapon . | . . . Special Melee Weapon . | . . . Unidentified Prototypes . | . . . Parts Lost 5 | . . 5 Power 1 | . . 1 Propulsion 2 | . . 2 Utility . | . . . Weapon 2 | . . 2 Highest Loss Streak 4 | . . 4 To Critical Strikes . | . . . Average Slot Usage (%) 79 | . 88 76 Engine 7 | . 14 5 Core 3 | . . 4 Leg 24 | . 28 23 Storage 20 | . 16 22 Energy Gun 11 | . 14 10 Energy Cannon 3 | . . 5 Ballistic Gun 7 | . 14 5 Peak Build Rating 11 | 6 7 11 Average Rating 8 | 4 6 9 On Entrance 4 | . 6 7 Naked Turns . | . . . Heaviest Build 21 | 12 16 21 Greatest Support 40 | 20 20 40 Greatest Overweight (x) 6 | . . 6 Average Overweight (x) . | . . . Largest Inventory Capacity 8 | 8 8 8 Average Capacity 7 | 6 8 8 Most Carried 8 | 2 6 8 Average Carried 5 | . 3 6 Final Capacity 8 | 8 8 8 Final Carried 7 | 2 6 7 Class Distribution -------------------- 100% | Mutant Dominant Class ---------------- Mutant | -10/Materials Mutant | -9/Materials Resources | -11 -10 -9 ----------- Run | Yrd Mat Mat Matter Collected 348 | 238 26 84 Remotely . | . . . Salvage Created 464 | . 89 375 Parts 26 | . 6 20 Haulers Intercepted . | . . . Recyclers Shooed 1 | . . 1 Parts Field Recycled . | . . . Retrieved Matter . | . . . Parts Self-Destructed . | . . . Prevented . | . . . Kills | -11 -10 -9 ------- Run | Yrd Mat Mat Combat Hostiles Destroyed 12 | . 2 10 Guns 11 | . 2 9 Cannons 1 | . . 1 Classes Destroyed 3 | . 1 2 Swarmer 3 | . . 3 Grunt 7 | . 2 5 Duelist 2 | . . 2 Best Kill Streak 5 | . 2 5 Combat Bots Only 5 | . 2 5 Max Kills in Single Turn 1 | . 1 1 Gunslinging . | . . . Exploded . | . . . Melee . | . . . Uniques/NPCs Destroyed . | . . . Combat | -11 -10 -9 -------- Run | Yrd Mat Mat Hostile Shots Fired 180 | . 6 174 Missed 43 | . 4 39 Damage Taken 1198 | . 24 1174 Core 409 | . . 409 Absorbed by Shields . | . . . Ignored by Resistances 367 | . 6 361 Core Remaining (%) 100 | 100 100 . Volleys Fired 36 | . 4 32 Largest 2 | . 2 2 Hottest 133 | . 60 133 Shots Fired 68 | . 8 60 Gun 58 | . 8 50 Cannon 10 | . . 10 Launcher . | . . . Special . | . . . Kinetic 23 | . 4 19 Thermal 45 | . 4 41 Explosive . | . . . Electromagnetic . | . . . Robot Hit Streak 19 | . 4 19 Robot Miss Streak 2 | . 1 2 Penetration Max . | . . . Secondary Targets 2 | . . 2 Max Gunslinging Chain 1 | . . 1 Shots Hit Robots 54 | . 5 49 Core Hits 24 | . 5 19 Critical Kills . | . . . Critical Parts Destroyed . | . . . Critical Strikes 3 | . . 3 Burn 3 | . . 3 Melee Attacks . | . . . Impact . | . . . Slashing . | . . . Piercing . | . . . Sneak Attacks . | . . . Combat Hostiles . | . . . Follow-up Attacks . | . . . Damage Inflicted 746 | . 45 701 Guns 560 | . 45 515 Cannons 184 | . . 184 Explosions . | . . . Melee . | . . . Ramming 2 | . . 2 Kinetic 143 | . 22 121 Thermal 601 | . 23 578 Explosive . | . . . Electromagnetic . | . . . Impact . | . . . Slashing . | . . . Piercing . | . . . Highest Corruption . | . . . Average Corruption . | . . . Corruption Purged . | . . . Corruption Blocked . | . . . Overload Shots . | . . . Overflow Damage . | . . . Projectiles . | . . . Explosions . | . . . Melee . | . . . Knockbacks . | . . . Impact . | . . . Kinetic . | . . . Secondary . | . . . Self-Inflicted Damage . | . . . Shots . | . . . Rammed . | . . . Targets Rammed 1 | . . 1 Kicked 1 | . . 1 Crushed . | . . . Highest Temperature 366 | . 38 366 Average Temperature 91 | . 20 97 Received Heat Transfer 291 | . 18 273 Siege Activations . | . . . Robots Corrupted . | . . . Combat Hostiles . | . . . Parts Fried . | . . . Impact Corruptions . | . . . Robots Melted . | . . . Combat Hostiles . | . . . Parts Melted . | . . . Heat Transferred 1604 | . 50 1554 Parts Sabotaged . | . . . Parts Stolen . | . . . Parts Stripped . | . . . Power Chain Reactions . | . . . Alert | -11 -10 -9 ------- Run | Yrd Mat Mat Peak Influence 343 | . 50 343 Initial 18 | . . 18 Average 129 | . 22 199 Maximum Alert Level 1 | . . 1 Low Security (%) 63 | 100 100 40 Level 1 36 | . . 59 Level 2 . | . . . Level 3 . | . . . Level 4 . | . . . Level 5 . | . . . High Security . | . . . Max Security . | . . . Squads Dispatched 1 | . . 1 Investigation . | . . . Extermination . | . . . Reinforcement 1 | . . 1 Assault . | . . . Garrison . | . . . Intercept . | . . . Searches Triggered . | . . . Construction Impeded . | . . . Haulers Reinforced . | . . . Active Scanning Responses . | . . . Cargo Convoy Interrupts . | . . . Stealth | -11 -10 -9 --------- Run | Yrd Mat Mat Distress Signals 1 | . . 1 Communications Jammed . | . . . Distress Signals . | . . . Times Spotted 26 | . 5 21 Peak Tracking Total 7 | . 2 7 Tactical Retreats 2 | . . 2 Traps | -11 -10 -9 ------- Run | Yrd Mat Mat Traps Triggered . | . . . Indirectly . | . . . Trap Hack Attempts . | . . . Triggered . | . . . Disarmed . | . . . Reprogrammed . | . . . Reused . | . . . Traps Extracted . | . . . Installed . | . . . Triggered . | . . . Machines | -11 -10 -9 ---------- Run | Yrd Mat Mat Machines Disabled . | . . . Max in Single Turn . | . . . Machines Repaired . | . . . Machines Dismantled . | . . . Machines Sabotaged . | . . . Overloaded Fab Kills . | . . . Hacking | -11 -10 -9 --------- Run | Yrd Mat Mat Machines Accessed . | . . . Terminals . | . . . Fabricators . | . . . Repair Stations . | . . . Recycling Units . | . . . Scanalyzers . | . . . Garrison Access . | . . . Total Hacks . | . . . Successful . | . . . Failed . | . . . Catastrophic . | . . . Database Lockouts . | . . . Manual . | . . . Terminals . | . . . Fabricators . | . . . Repair Stations . | . . . Recycling Units . | . . . Scanalyzers . | . . . Garrison Access . | . . . Terminal Hacks . | . . . Fabricator Hacks . | . . . Repair Station Hacks . | . . . Recycling Unit Hacks . | . . . Scanalyzer . | . . . Garrison Access Hacks . | . . . Unauthorized Hacks . | . . . Terminals . | . . . Fabricators . | . . . Repair Stations . | . . . Recycling Units . | . . . Scanalyzers . | . . . Garrison Access . | . . . Data Cores Recovered . | . . . Used . | . . . Hacking Detections . | . . . Full Trace Events . | . . . Feedback Events . | . . . Feedback Blocked . | . . . Robot Schematics Acquired . | . . . Robots Built . | . . . Authchips . | . . . Time . | . . . Total Robot Build Rating . | . . . Part Schematics Acquired . | . . . Parts Built . | . . . Authchips . | . . . Time . | . . . Total Part Build Rating . | . . . Parts Repaired . | . . . Time . | . . . Parts Recycled . | . . . Recycled Matter . | . . . Retrieved Matter . | . . . Retrieved Components . | . . . Parts Scanalyzed . | . . . Part Schematics Acquired . | . . . Parts Damaged . | . . . Bothacking | -11 -10 -9 ------------ Run | Yrd Mat Mat Used RIF Installer . | . . . Robots Hacked . | . . . Non-combat . | . . . Combat . | . . . Robot Hacks Applied . | . . . Relay Couplers Released . | . . . Fabnet Peak Effective % . | . . . Robots Rewired . | . . . Allies Hacked . | . . . Hacks Repelled . | . . . Allies | -11 -10 -9 -------- Run | Yrd Mat Mat Total Allies . | . . . Largest Group . | . . . Highest-Rated Group . | . . . Highest-Rated Ally . | . . . Total Orders . | . . . Ally Attacks . | . . . Total Damage . | . . . Kills . | . . . Allies Corrupted . | . . . Allies Melted . | . . . Intel | -11 -10 -9 ------- Run | Yrd Mat Mat Robot Analysis Total . | . . . Derelict Logs Recovered . | . . . Drone Launches . | . . . Drone Recoveries . | . . . Exploration | -11 -10 -9 ------------- Run | Yrd Mat Mat Turns Passed 693 | 78 186 429 Spaces Moved 377 | 61 142 174 Core 10 | 8 . 2 Treads . | . . . Legs 367 | 53 142 172 Wheels . | . . . Hover . | . . . Flight . | . . . Fastest Speed 50 | 50 120 120 Average Speed 139 | 110 120 165 Slowest Speed 350 | 120 120 350 Overloaded Moves . | . . . Propulsion Burnouts . | . . . Robots Hopped . | . . . Cave-ins Triggered . | . . . Exploration Rate (%) 15 | 4 23 20 Regions Visited 2 Branch Regions . Pre-discovered Areas . | . . . Known Exits Taken . | . . . Unknown Exits Taken 2 | 1 1 . Scrap Searched . | . . . Spaces Dug . | . . . Terrain Destroyed . | . . . Melee . | . . . Projectile . | . . . AOE . | . . . Terrain Rammed . | . . . Walls Destroyed . | . . . Machines Disabled . | . . . Actions | -11 -10 -9 --------- Run | Yrd Mat Mat Total 474 | 68 150 256 Wait 39 | . . 39 Move 375 | 60 141 174 Hop . | . . . Pick Up 10 | 2 4 4 Fast Attach 7 | 6 1 . Attach 4 | . . 4 Detach . | . . . Swap 2 | . . 2 Drop . | . . . Fire 36 | . 4 32 Melee . | . . . Ram . | . . . Kick 1 | . . 1 Crush . | . . . Escape Stasis . | . . . Rewire . | . . . Trap . | . . . Miscellaneous . | . . . Route ------- -11/Scrapyard -10/Materials -9/Materials History --------- Turn | Location | Event 5 | -11/Scrapyard | Discovered new exit (range 14) 79 | -11/Scrapyard | Entered Materials 261 | -10/Materials | Discovered new exit (range 3) 265 | -10/Materials | Entered another Materials area 265 | -9/Materials | Evolved 2 slots: Propulsion x2 306 | -9/Materials | Build established: Mutant 665 | -9/Materials | Core integrity fell below 50% 680 | -9/Materials | Core integrity fell below 20% 694 | -9/Materials | Destroyed by Y-45 Defender with Heavy Assault Rifle Last Messages --------------- Particle Gun destroyed. Y-45 Defender heat damages Lgt. Treads. K-01 Serf collects debris. Y-45 Defender heat damages core (-5). R-06 Scavenger destroyed. Particle Cannon destroyed. Y-45 Defender heat damages core (-7). Y-45 Defender heat damages Lgt. Armor Plating. Y-45 Defender heat damages Lgt. Armor Plating, Heat Sink, Hvy. Assault Rifle. Y-45 Defender heat damages core (-6). Y-45 Defender heat spikes uncontrollably. R-06 Scavenger collects Lgt. Ion Engine. Y-45 Defender heat damages Heat Sink, Imp. Ion Engine, Heat Sink, Hvy. Assault Rifle. R-06 Scavenger collects Lgt. Assault Rifle. R-06 Scavenger collects Tractor Beam. Y-45 Defender heat damages Lgt. Treads. R-06 Scavenger collects Com. Wheel. S-10 Pest destroyed. Map ----- +----------------------------------------------------+ | ???????????????# % ^^ #####" | | ???????????????# | | ???????????????# %% | | ???????????????######+###########+####### % """ " | | ???????????????# #?# % %* #?# """ " | | ???????????????# #?# ==%"" #?# """ " | | ???????????????# #?# Y" #?# % % | | ???????????????# """ """ #?# "" #?# % | | ???????????????# """ """ #?# #?# | | ???????????????# """ """ #?# ! """ #?# | | ???????????????# #?# """ #?# ##### | | ???????????????#############?# """ #?# #???? | | ?????????????????????????????# #?# #???? | | ?????????????????????????????##########?# #???? | | ??????????????????????################### #???? | | ??????????????????????? #???? | | ?????????????????????????# #???? | | ?????????????????????????# # | | ?????????????????????????# | | ?????????????????????????# | | ?????????????????????????# | | ???????????#????????############## ##### ###+# | | ??????????# ##### #?######+###?#######???? | | ??????????# ### #???????????? | | ??????????+ Yrr+ #???????????? | | ??????????# r@### #???????????? | | ??????????# ##### s #?# ^ #???????????? | | ????????????????????## [%##?# #???????????? | | ?????????????????????# %s???# ^ #???????????? | | ???????????????????? + k ???# #???????????? | | ???????????????????T # ???# [#???????????? | | ?????????????????? " #% ???# #???????????? | | ????????????????? ?# ???#####/####???????????? | | ????????????????###??# ???????? ??????????????? | | ?????????????????????# ???????? ?????????????? | | ?????????????????????# ????????""""?????????????? | | ?????????????????????# ????????""""?????????????? | | ????????????????????? ?????????????????????????? | | ????????????????????? ??????????????????????????? | | ????????????????????? ???????????????????????????? | | ?????????????????????????????????????????????????? | | ?????????????????????????????????????????????????? | | ?????????????????????????????????????????????????? | | ?????????????????????????????????????????????????? | | ?????????????????????????????????????????????????? | | ?????????????????????????????????????????????????? | | ?????????????????????????????????????????????????? | | ?????????????????????????????????????????????????? | | ?????????????????????????????????????????????????? | | ?????????????????????????????????????????????????? | +----------------------------------------------------+ Best States ------------- Heat Dissipation 28 Energy Generation 14 Energy Capacity 500 Matter Stores 300 Matter Capacity 300 Sight Range 16 Terrain Scan Density 10 Resistance: KI 20 Resistance: TH 20 Resistance: EX 20 Resistance: EM 20 Resistance: I 20 Resistance: S 20 Resistance: P 20 Evasion (%) 55 Offensive Hacking 10 Item Schematics ----------------- None Robot Schematics ------------------ None Fabricated ------------ Nothing Alien Tech Used ----------------- None Achievements -------------- None Challenges ------------ None Game ------ Seed CannonSpliceFirepult Manual? 0 Play Time 00:08:33 Cumulative 2.2 hours Start 2024.12.24 @ 01:14:21 End 2024.12.24 @ 01:20:21 Sessions 1 Manual Loads 0 Difficulty Adventurer Special Mode None Game No. 6 Rogue 0 Adventurer 6 Explorer 0 Win Type - Total 0 Types 0/0/0/0/0/0/0/0/0 Lore% 1 Gallery% 7 Achievement% 5 Wizard Run 0 Options --------- Layout 1 ASCII 0 Keyboard 0 Movement Arrows Keybinds 0 Fullscreen 1 Font 24/Smallcaps Map View 50x35 Zoom Use 0% Tactical HUD 0 Map Filters NONE Filters NONE Steam 1 RUN: cf5bddde-5ebd-4298-8b76-eae9288d7008